[Event "IIFL Wealth  4th Mumbai Junior U-13"]
[Site "Mumbai"]
[Date "2019.01.02"]
[Round "4"]
[White "Krishnan Ritvik"]
[Black "Jadhav Jyotiraditya"]
[Result "1-0"]
[ECO "B40"]
[WhiteElo "1812"]
[BlackElo "1358"]
[Annotator "NA RC"]
[PlyCount "67"]
[EventDate "2018.12.30"]
[EventType "swiss"]
[EventCountry "IND"]
[SourceTitle "playchess.com"]
[Source "ChessBase"]
[SourceQuality "1"]
[TimeControl "40/5400+30:1800+30"]

1. e4 {[%emt 0:02:50]} c5 {[%emt 0:00:00]} 2. Nf3 {[%emt 0:00:03]} e6 {[%emt 0:00:00]} 3. c3 {[%emt 0:00:06]} Nf6 {[%emt 0:13:40]} 4. e5 {[%emt 0:00:04]} Nd5 {[%emt 0:00:07]} 5. d4 {[%emt 0:00:02]} cxd4 {[%emt 0:01:32]} 6. cxd4 {[%emt 0:00:01]} d6 {[%emt 0:02:10]} 7. Bc4 {[%emt 0:00:05]} Nb6 {[%emt 0:02:37]} 8. Bd3 {[%emt 0:00:27]} Nc6 {[%emt 0:02:00]} 9. O-O {[%emt 0:04:26]} Qc7 {[%emt 0:06:44] B22: Sicilian: 2 c3} (9... Nb4 10. Bg5 Be7 11. Bxe7 Qxe7 12. Nc3 Nxd3 13. Qxd3 dxe5 14. dxe5 O-O 15. Qe4 Rb8 16. Nb5 Bd7 17. Nxa7 Ra8 {0-1 (47) Boruchovsky,A (2531)-Naiditsch,A (2667) Jerusalem 2016}) 10. Re1 {[%emt 0:04:06]} dxe5 $146 {[%emt 0:01:09]} ({Predecessor:} 10... a6 11. Nc3 Bd7 12. a3 Be7 13. exd6 Qxd6 14. Ne4 Qc7 15. Bd2 Nd5 16. Rc1 Qb6 17. Bc3 {1-0 (36) Pereira,G (2036)-Gomes,M (1759) Florianopolis 2017}) 11. dxe5 {[%emt 0:00:25]} Be7 {[%emt 0:04:21]} 12. Nc3 {[%emt 0:00:34]} a6 {[%emt 0:01:10]} 13. Qe2 {[%emt 0:00:40]} Bd7 {[%emt 0:04:10]} 14. Bf4 {[%emt 0:00:30]} h6 {[%emt 0:03:09]} 15. Rac1 {[%emt 0:02:29]} g5 {[%emt 0:03:53]} 16. Bg3 {[%emt 0:00:23]} h5 {[%emt 0:03:15]} 17. h3 {[%emt 0:03:41]} (17. h4 $142) 17... O-O-O {[%emt 0:06:19]} 18. Ne4 {[%emt 0:01:19]} Rdg8 {[%emt 0:18:13]} (18... g4 $142) 19. Nd6+ {[%emt 0:00:27]} Bxd6 $2 {[%emt 0:00:51]} (19... Kb8 20. Nxf7 {[%mdl 64] Trapped Piece} g4) 20. exd6 {[%emt 0:00:02]} Qd8 $18 {[%emt 0:08:30]} 21. Bxa6 {[%emt 0:00:32]} Kb8 {[%emt 0:07:49]} 22. Ne5 {[%emt 0:02:47]} Nxe5 {[%emt 0:03:03]} 23. Bxe5 {[%emt 0:00:07]} f6 {[%emt 0:00:06]} 24. Qf3 {[%emt 0:01:16]} Nd5 {[%emt 0:01:18]} 25. Rc7 {[%emt 0:05:12]} Bc6 {[%emt 0:01:24]} 26. Qb3 {[%emt 0:01:04]} fxe5 {[%emt 0:02:11]} 27. Bxb7 {[%emt 0:00:32]} Qxc7 {[%emt 0:01:53]} 28. dxc7+ {[%emt 0:00:22]} Kxc7 {[%emt 0:00:10]} 29. Rc1 {[%emt 0:00:11]} Ne7 {[%emt 0:01:02]} 30. Bxc6 {[%emt 0:00:16]} Nxc6 {[%emt 0:00:05]} 31. Qxe6 {[%emt 0:00:14]} Re8 {[%emt 0:00:54]} 32. Qxc6+ {[%emt 0:00:07]} Kb8 {[%emt 0:00:09]} 33. Qb6+ {[%emt 0:00:03]} Ka8 {[%emt 0:00:07]} 34. Rc7 {[%emt 0:00:04]} 1-0

[Event "IIFL Wealth  4th Mumbai Junior U-13"]
[Site "Mumbai"]
[Date "2019.01.02"]
[Round "4"]
[White "Barde Om"]
[Black "Khairmode Aditya"]
[Result "1-0"]
[ECO "C47"]
[WhiteElo "1801"]
[BlackElo "1337"]
[Annotator "NA RC"]
[PlyCount "101"]
[EventDate "2018.12.30"]
[EventType "swiss"]
[EventCountry "IND"]
[SourceTitle "playchess.com"]
[Source "ChessBase"]
[SourceQuality "1"]
[TimeControl "40/5400+30:1800+30"]

1. e4 {[%emt 0:00:00]} e5 {[%emt 0:00:00]} 2. Nf3 {[%emt 0:00:00]} Nf6 {[%emt 0:00:00]} 3. Nc3 {[%emt 0:03:29]} Nc6 {[%emt 0:00:19]} 4. h3 {[%emt 0:03:11]} d5 {[%emt 0:02:55] C47: Scotch Four Knights and Four Knights with 4 g3} (4... Bb4 5. Bd3 Bxc3 6. dxc3 d6 7. O-O h6 8. Re1 g5 9. Nh2 Ne7 10. Bb5+ Kf8 11. a4 a5 12. Bf1 {½-½ (59) Yu,Y (2760)-Vidit,S (2707) Liaocheng 2018}) 5. exd5 {[%emt 0:01:47]} Nxd5 {[%emt 0:00:08]} 6. d3 {[%emt 0:00:36]} Be6 $146 {[%emt 0:03:15]} ({Predecessor:} 6... Be7 7. Be2 Bf5 8. O-O Nxc3 9. bxc3 e4 10. Ne1 exd3 11. cxd3 O-O {1-0 (42) Granat,R (2264)-De Coverly,R (2092) Sunningdale 2007}) 7. Be2 {[%emt 0:00:52]} Bc5 {[%emt 0:01:37]} 8. Ng5 {[%emt 0:06:47]} Nxc3 {[%emt 0:06:11]} 9. bxc3 {[%emt 0:00:32]} Bd5 {[%emt 0:01:45]} 10. Bf3 {[%emt 0:12:29]} f6 {[%emt 0:04:50]} 11. Ne4 {[%emt 0:05:54]} Bb6 {[%emt 0:02:41]} 12. O-O {[%emt 0:00:09]} Qd7 {[%emt 0:04:15]} 13. Ba3 {[%emt 0:03:10]} (13. c4 $5 {[%cal Rc4d5]} Be6 14. a4 $14) 13... O-O-O {[%emt 0:06:34]} 14. c4 {[%emt 0:31:42]} Be6 {[%emt 0:04:04]} 15. Nc5 {[%emt 0:00:41]} Bxc5 $1 {[%emt 0:01:09]} 16. Bxc5 {[%emt 0:00:03]} b6 {[%emt 0:06:29]} 17. Be3 {[%emt 0:01:33]} Nd4 {[%emt 0:03:46]} 18. Bxd4 {[%emt 0:03:05]} Qxd4 {[%emt 0:00:11]} 19. Qe2 {[%emt 0:13:09]} f5 {[%emt 0:03:58]} 20. Rfd1 {[%emt 0:01:02]} h6 {[%emt 0:03:40]} (20... g5 $11) 21. Rac1 {[%emt 0:06:38]} (21. a4 $1 $14) 21... g5 {[%emt 0:02:49]} 22. c3 {[%emt 0:00:34]} Qd6 {[%emt 0:01:06]} 23. Re1 {[%emt 0:03:11]} Rhe8 {[%emt 0:04:45]} 24. Qxe5 {[%emt 0:00:53]} Qxd3 {[%emt 0:01:20]} 25. Rcd1 {[%emt 0:00:30]} Qxc4 {[%emt 0:01:10]} 26. Rxd8+ {[%emt 0:00:04]} Kxd8 {[%emt 0:00:58]} 27. Qf6+ {[%emt 0:00:53]} Kc8 {[%emt 0:01:24]} 28. Bh5 {[%emt 0:00:23]} Bf7 {[%emt 0:03:30]} 29. Rxe8+ {[%emt 0:00:22]} Bxe8 {[%emt 0:00:10]} 30. Bxe8 {[%emt 0:00:03]} Kb7 {[%emt 0:01:08]} 31. Bf7 {[%emt 0:01:04]} Qe4 {[%emt 0:01:06]} 32. Qd4 {[%emt 0:00:38]} Qe7 {[%emt 0:02:32]} 33. Bd5+ {[%emt 0:00:12]} c6 {[%emt 0:01:25]} 34. Bf3 {[%emt 0:00:02]} Kc7 {[%emt 0:01:33]} 35. Kf1 $18 {[%emt 0:01:19]} Qa3 {[%emt 0:01:24]} 36. Qd2 {[%emt 0:00:29]} Qa4 {[%emt 0:00:52]} 37. Kg1 {[%emt 0:00:13]} g4 {[%emt 0:00:59]} 38. hxg4 {[%emt 0:00:03]} fxg4 {[%emt 0:00:03]} 39. Bd1 {[%emt 0:00:58]} Qe4 {[%emt 0:00:56]} 40. Bc2 {[%emt 0:00:00]} Qe6 {[%emt 0:00:00]} 41. Bb3 {[%emt 0:01:07]} Qf6 {[%emt 0:00:48]} 42. Qd4 {[%emt 0:01:39]} Qg5 {[%emt 0:00:09]} 43. Qe3 {[%emt 0:00:32]} Qf6 {[%emt 0:00:15]} 44. Qg3+ {[%emt 0:05:30]} Kb7 {[%emt 0:00:17]} 45. Qd3 {[%emt 0:00:10]} Qe7 {[%emt 0:00:21]} 46. Kf1 {[%emt 0:00:35]} h5 {[%emt 0:00:22]} 47. Qf5 {[%emt 0:01:41]} Qe8 {[%emt 0:02:05]} 48. Qf7+ {[%emt 0:00:36]} Qxf7 {[%emt 0:00:15]} 49. Bxf7 {[%emt 0:00:03]} h4 {[%emt 0:00:09]} 50. Be6 {[%emt 0:00:06]} h3 {[%emt 0:00:48]} 51. gxh3 {[%emt 0:00:03]} 1-0

[Event "IIFL Wealth  4th Mumbai Junior U-13"]
[Site "Mumbai"]
[Date "2019.01.02"]
[Round "4"]
[White "Garv Rai"]
[Black "Kshatriya Nitin Vekhande"]
[Result "1/2-1/2"]
[ECO "A45"]
[WhiteElo "1772"]
[BlackElo "1544"]
[Annotator "NA RC"]
[PlyCount "184"]
[EventDate "2018.12.30"]
[EventType "swiss"]
[EventCountry "IND"]
[SourceTitle "playchess.com"]
[Source "ChessBase"]
[SourceQuality "1"]
[TimeControl "40/5400+30:1800+30"]

1. d4 {[%emt 0:00:00]} Nf6 {[%emt 0:00:00]} 2. Bf4 {[%emt 0:00:00]} d5 {[%emt 0:00:00]} 3. e3 {[%emt 0:00:00]} e6 {[%emt 0:00:00]} 4. Nd2 {[%emt 0:00:18]} c5 {[%emt 0:00:39]} 5. c3 {[%emt 0:00:08]} Be7 {[%emt 0:00:05]} 6. Ngf3 {[%emt 0:00:31]} O-O {[%emt 0:00:10]} 7. Bd3 {[%emt 0:00:10]} Nbd7 {[%emt 0:01:05]} 8. Ne5 {[%emt 0:00:11]} a6 {[%emt 0:03:01]} 9. h4 {[%emt 0:00:27]} Ne8 {[%emt 0:01:52]} 10. Qh5 {[%emt 0:16:23]} f5 {[%emt 0:00:46]} 11. Qe2 {[%emt 0:02:18]} Ndf6 {[%emt 0:03:57]} 12. Ndf3 {[%emt 0:12:03]} Nd6 {[%emt 0:00:55]} 13. dxc5 {[%emt 0:07:15]} Nf7 {[%emt 0:00:46]} 14. c6 {[%emt 0:01:03]} bxc6 {[%emt 0:00:14]} 15. Nxc6 {[%emt 0:00:30]} Qd7 {[%emt 0:00:07]} 16. Nfe5 {[%emt 0:00:55]} Nxe5 {[%emt 0:00:30]} 17. Nxe5 {[%emt 0:01:05]} Qb7 {[%emt 0:00:07]} 18. O-O {[%emt 0:01:23]} Ne4 {[%emt 0:00:42]} 19. Bxe4 {[%emt 0:00:56]} fxe4 {[%emt 0:00:30]} 20. Bg3 {[%emt 0:02:56]} Bd6 {[%emt 0:00:24]} 21. Ng4 {[%emt 0:07:23]} Bxg3 {[%emt 0:01:39]} 22. fxg3 {[%emt 0:00:03]} Bd7 {[%emt 0:00:14]} 23. Rf4 {[%emt 0:08:32]} Bb5 {[%emt 0:02:49]} 24. Qd2 {[%emt 0:02:08]} Qe7 {[%emt 0:21:54]} 25. Rxf8+ {[%emt 0:00:52]} Rxf8 {[%emt 0:00:10]} 26. a4 {[%emt 0:00:13]} Bc4 {[%emt 0:02:14]} 27. Ne5 {[%emt 0:00:59]} Qc7 {[%emt 0:00:02]} 28. Nxc4 {[%emt 0:00:49]} Qxc4 {[%emt 0:00:02]} 29. Qc2 {[%emt 0:04:43]} Qc7 {[%emt 0:00:13]} 30. Kh2 {[%emt 0:02:17]} a5 {[%emt 0:00:11]} 31. Qe2 {[%emt 0:01:03]} Rb8 {[%emt 0:00:27]} 32. Qc2 {[%emt 0:03:15]} Qb6 {[%emt 0:00:03]} 33. c4 {[%emt 0:08:49]} Qxb2 {[%emt 0:00:37]} 34. Qxb2 {[%emt 0:00:51]} Rxb2 {[%emt 0:00:05]} 35. Rc1 {[%emt 0:00:07]} dxc4 {[%emt 0:01:02]} 36. Rxc4 {[%emt 0:00:11]} Rb4 {[%emt 0:00:42]} 37. Rxb4 {[%emt 0:00:24]} axb4 {[%emt 0:00:05]} 38. a5 {[%emt 0:00:00]} b3 {[%emt 0:00:08]} 39. a6 {[%emt 0:00:05]} b2 {[%emt 0:00:02]} 40. a7 {[%emt 0:00:00]} b1=Q {[%emt 0:00:00]} 41. a8=Q+ {[%emt 0:00:10]} Kf7 {[%emt 0:00:24]} 42. Qa7+ {[%emt 0:01:02]} Kf6 {[%emt 0:00:36]} 43. Qd4+ {[%emt 0:00:38]} Kf7 {[%emt 0:00:10]} 44. Qd7+ {[%emt 0:00:04]} Kf6 {[%emt 0:00:11]} 45. Qd8+ {[%emt 0:03:12]} Kf7 {[%emt 0:00:09]} 46. Qc7+ {[%emt 0:00:08]} Kf6 {[%emt 0:00:19]} 47. Qf4+ {[%emt 0:00:33]} Ke7 {[%emt 0:00:07]} 48. Qc7+ {[%emt 0:00:47]} Kf6 {[%emt 0:00:07]} 49. Qc3+ {[%emt 0:01:04]} Kf7 {[%emt 0:00:25]} 50. Qc7+ {[%emt 0:00:08]} Kf6 {[%emt 0:00:57]} 51. Qd8+ {[%emt 0:00:32]} Kf7 {[%emt 0:00:19]} 52. Qd7+ {[%emt 0:00:00]} Kf6 {[%emt 0:00:09]} 53. g4 {[%emt 0:00:00]} Qe1 {[%emt 0:05:16]} 54. g5+ {[%emt 0:01:35]} Kf5 {[%emt 0:00:09]} 55. Qf7+ {[%emt 0:01:12]} Kg4 {[%emt 0:01:56]} 56. Qxe6+ {[%emt 0:02:16]} Kxh4 {[%emt 0:12:00]} 57. Qxe4+ {[%emt 0:00:18]} Kxg5 {[%emt 0:02:11]} 58. Qxh7 {[%emt 0:00:46]} Qxe3 {[%emt 0:01:04]} 59. Qxg7+ {[%emt 0:01:03]} Kh5 {[%emt 0:01:56]} 60. Qf7+ {[%emt 0:01:05]} Kh6 {[%emt 0:00:33]} 61. Qf6+ {[%emt 0:00:20]} Kh5 {[%emt 0:00:51]} 62. Qf5+ {[%emt 0:00:44]} Kh4 {[%emt 0:01:31]} 63. Qh7+ {[%emt 0:00:32]} Kg5 {[%emt 0:00:41]} 64. Qg7+ {[%emt 0:00:55]} Kh5 {[%emt 0:00:50]} 65. Qh8+ {[%emt 0:00:17]} Kg5 {[%emt 0:00:40]} 66. Qd8+ {[%emt 0:00:17]} Kg4 {[%emt 0:00:29]} 67. Qd7+ {[%emt 0:01:03]} Kh4 {[%emt 0:00:16]} 68. Qh7+ {[%emt 0:01:09]} Kg5 {[%emt 0:00:12]} 69. Qg8+ {[%emt 0:00:16]} Kh5 {[%emt 0:00:16]} 70. Qd5+ {[%emt 0:00:39]} Kg4 {[%emt 0:00:51]} 71. Qc4+ {[%emt 0:00:31]} Kg5 {[%emt 0:00:22]} 72. Qd5+ {[%emt 0:00:06]} Kg4 {[%emt 0:02:25]} 73. Qd7+ {[%emt 0:00:29]} Kh4 {[%emt 0:00:12]} 74. Qd6 {[%emt 0:02:13]} Kh5 {[%emt 0:01:40]} 75. Qd5+ {[%emt 0:00:39]} Kg4 {[%emt 0:00:15]} 76. Qc4+ {[%emt 0:00:27]} Kg5 {[%emt 0:00:38]} 77. Qc7 {[%emt 0:00:37]} Kg4 {[%emt 0:00:24]} 78. Qd6 {[%emt 0:00:38]} Kh5 {[%emt 0:01:01]} 79. Qd5+ {[%emt 0:00:17]} Kg4 {[%emt 0:00:26]} 80. Qg8+ {[%emt 0:00:07]} Kh5 {[%emt 0:00:07]} 81. Qh7+ {[%emt 0:00:26]} Kg5 {[%emt 0:00:11]} 82. Qc7 {[%emt 0:00:22]} Kg4 {[%emt 0:00:13]} 83. Qc4+ {[%emt 0:00:14]} Kg5 {[%emt 0:00:44]} 84. Qd5+ {[%emt 0:00:33]} Kg4 {[%emt 0:00:18]} 85. Qd6 {[%emt 0:00:37]} Kh5 {[%emt 0:00:13]} 86. Qc7 {[%emt 0:01:10]} Kg4 {[%emt 0:00:22]} 87. Qc4+ {[%emt 0:00:24]} Kg5 {[%emt 0:00:40]} 88. Qd5+ {[%emt 0:00:03]} Kg4 {[%emt 0:00:22]} 89. Qg8+ {[%emt 0:00:11]} Kh5 {[%emt 0:00:07]} 90. Qh7+ {[%emt 0:00:17]} Kg5 {[%emt 0:00:10]} 91. Qg7+ {[%emt 0:03:44]} Kh5 {[%emt 0:00:09]} 92. Qf7+ {[%emt 0:00:13]} Kg5 {[%emt 0:00:06]} 1/2-1/2

[Event "IIFL Wealth  4th Mumbai Junior U-13"]
[Site "Mumbai"]
[Date "2019.01.02"]
[Round "4"]
[White "Bagwe Gaurang"]
[Black "Nikhil Magizhnan"]
[Result "0-1"]
[ECO "B22"]
[WhiteElo "1768"]
[BlackElo "2148"]
[Annotator "ChessBase"]
[PlyCount "122"]
[EventDate "2018.12.30"]
[EventType "swiss"]
[EventCountry "IND"]
[SourceTitle "playchess.com"]
[Source "ChessBase"]
[SourceQuality "1"]
[TimeControl "40/5400+30:1800+30"]

1. e4 {[%emt 0:00:00]} c5 {[%emt 0:00:00]} 2. c3 {[%emt 0:00:10]} Nf6 {[%emt 0:00:01]} 3. e5 {[%emt 0:00:11]} Nd5 {[%emt 0:00:21]} 4. d4 {[%emt 0:00:08]} cxd4 {[%emt 0:00:21]} 5. Nf3 {[%emt 0:00:07]} e6 {[%emt 0:00:10]} 6. cxd4 {[%emt 0:00:12]} Nc6 {[%emt 0:01:03]} 7. Nc3 {[%emt 0:03:13]} d6 {[%emt 0:08:01]} 8. Nxd5 {[%emt 0:11:30]} exd5 {[%emt 0:00:16]} 9. Be2 {[%emt 0:01:08]} dxe5 {[%emt 0:12:42]} 10. Nxe5 {[%emt 0:02:21]} Bb4+ {[%emt 0:01:30]} 11. Bd2 {[%emt 0:00:52]} Qa5 {[%emt 0:00:23]} 12. Nxc6 {[%emt 0:01:19]} bxc6 13. a3 {[%emt 0:00:59]} Bxd2+ {[%emt 0:00:34]} 14. Qxd2 {[%emt 0:00:01]} Qxd2+ {[%emt 0:01:58]} 15. Kxd2 {[%emt 0:00:06]} O-O {[%emt 0:02:09]} 16. Rac1 {[%emt 0:02:26]} Bd7 {[%emt 0:00:21]} 17. Ba6 {[%emt 0:01:16]} Rfb8 {[%emt 0:01:20]} 18. b4 {[%emt 0:04:13]} Rb6 {[%emt 0:00:06]} 19. Bd3 {[%emt 0:00:50]} a5 {[%emt 0:00:55]} 20. Ra1 {[%emt 0:00:11]} Kf8 {[%emt 0:04:18]} 21. Kc3 {[%emt 0:01:49]} Ke7 {[%emt 0:01:23]} 22. Rhb1 {[%emt 0:00:11]} Kd6 {[%emt 0:00:12]} 23. bxa5 {[%emt 0:02:50]} Rxb1 {[%emt 0:00:12]} 24. Rxb1 {[%emt 0:00:12]} Rxa5 {[%emt 0:00:10]} 25. Kb4 {[%emt 0:00:25]} Ra8 {[%emt 0:00:27]} 26. a4 {[%emt 0:01:15]} Bc8 {[%emt 0:01:38]} 27. a5 Ba6 {[%emt 0:00:24]} 28. Bc2 {[%emt 0:13:19]} Bc4 {[%emt 0:01:32]} 29. Bb3 {[%emt 0:09:22]} Rb8+ {[%emt 0:03:40]} 30. Kc3 {[%emt 0:04:18]} Rb5 {[%emt 0:01:57]} 31. Bc2 {[%emt 0:00:50]} Rxa5 {[%emt 0:00:17]} 32. Rb7 {[%emt 0:00:27]} Ke6 {[%emt 0:08:12]} 33. Bxh7 {[%emt 0:02:14]} g6 {[%emt 0:04:47]} 34. Bg8 {[%emt 0:00:53]} Ra3+ {[%emt 0:00:19]} 35. Kd2 {[%emt 0:00:30]} Rd3+ {[%emt 0:00:12]} 36. Kc2 {[%emt 0:01:10]} Rxd4 {[%emt 0:01:03]} 37. Rxf7 {[%emt 0:02:52]} Kd6 {[%emt 0:01:03]} 38. Rf6+ {[%emt 0:01:16]} Kc5 {[%emt 0:00:05]} 39. Bf7 {[%emt 0:00:43]} g5 {[%emt 0:00:38]} 40. g3 {[%emt 0:00:00]} Re4 {[%emt 0:00:00]} 41. Re6 {[%emt 0:05:17]} Rd4 {[%emt 0:10:05]} 42. Rf6 {[%emt 0:01:13]} Bb5 {[%emt 0:02:01]} 43. f4 {[%emt 0:02:00]} gxf4 {[%emt 0:00:37]} 44. Rxf4 {[%emt 0:01:26]} Bd3+ {[%emt 0:00:23]} 45. Kc1 {[%emt 0:02:16]} Be4 {[%emt 0:00:40]} 46. h4 {[%emt 0:01:21]} Rd3 {[%emt 0:02:03]} 47. g4 {[%emt 0:01:17]} Kd4 {[%emt 0:04:29]} 48. Rf2 {[%emt 0:06:02]} Rh3 {[%emt 0:01:12]} 49. h5 {[%emt 0:08:58]} Kc3 {[%emt 0:01:52]} 50. Rf1 {[%emt 0:02:47]} Rh2 {[%emt 0:03:47]} 51. Bg6 {[%emt 0:05:54]} Ra2 {[%emt 0:17:06]} 52. Kd1 {[%emt 0:12:37]} Bxg6 {[%emt 0:03:34]} 53. hxg6 {[%emt 0:00:09]} d4 {[%emt 0:00:56]} 54. Rf5 {[%emt 0:07:18]} Ra1+ {[%emt 0:03:06]} 55. Ke2 {[%emt 0:00:07]} d3+ {[%emt 0:00:05]} 56. Kf2 {[%emt 0:03:34]} d2 {[%emt 0:00:29]} 57. g7 {[%emt 0:01:45]} d1=Q {[%emt 0:00:55]} 58. g8=Q Qg1+ {[%emt 0:00:25]} 59. Ke2 {[%emt 0:01:40]} Re1+ {[%emt 0:00:11]} 60. Kf3 {[%emt 0:00:01]} Qe3+ {[%emt 0:00:18]} 61. Kg2 {[%emt 0:00:24]} Rg1+ {[%emt 0:00:19]} 0-1

[Event "IIFL Wealth  4th Mumbai Junior U-13"]
[Site "Mumbai"]
[Date "2019.01.02"]
[Round "4"]
[White "Devesh Anand Naik"]
[Black "Aditya Ramanathan"]
[Result "1-0"]
[ECO "C77"]
[WhiteElo "1763"]
[BlackElo "1493"]
[Annotator "NA"]
[PlyCount "117"]
[EventDate "2018.12.30"]
[EventType "swiss"]
[EventCountry "IND"]
[SourceTitle "playchess.com"]
[Source "ChessBase"]
[SourceQuality "1"]
[TimeControl "40/5400+30:1800+30"]

1. e4 {[%emt 0:00:00]} e5 {[%emt 0:00:00]} 2. Nf3 {[%emt 0:00:00]} Nc6 {[%emt 0:00:00]} 3. Bb5 {[%emt 0:00:00]} a6 {[%emt 0:00:00]} 4. Ba4 {[%emt 0:00:00]} Nf6 {[%emt 0:00:00]} 5. d3 {[%emt 0:00:00]} d6 {[%emt 0:00:06]} 6. O-O {[%emt 0:00:12]} b5 {[%emt 0:00:32]} 7. Bb3 {[%emt 0:00:07]} Na5 {[%emt 0:00:09]} 8. Nbd2 {[%emt 0:01:21]} Nxb3 {[%emt 0:00:17]} 9. axb3 {[%emt 0:00:09]} c5 {[%emt 0:01:08]} 10. Re1 {[%emt 0:00:18]} Be7 {[%emt 0:00:33]} 11. Nf1 {[%emt 0:00:25]} O-O {[%emt 0:00:12]} 12. c3 {[%emt 0:00:57]} Bg4 {[%emt 0:00:40]} 13. h3 {[%emt 0:00:27]} Bh5 {[%emt 0:01:47]} 14. Ng3 {[%emt 0:01:54]} Bg6 15. Nh4 {[%emt 0:01:24]} Qd7 {[%emt 0:03:13]} 16. Nxg6 {[%emt 0:01:32]} hxg6 {[%emt 0:00:11]} 17. f4 Qe6 {[%emt 0:06:15]} 18. Be3 {[%emt 0:21:06]} d5 {[%emt 0:04:11]} 19. fxe5 {[%emt 0:16:34]} Qxe5 {[%emt 0:01:11]} 20. Bf2 {[%emt 0:00:43]} dxe4 {[%emt 0:05:00]} 21. Nxe4 {[%emt 0:00:56]} Nxe4 {[%emt 0:01:17]} 22. Rxe4 {[%emt 0:00:13]} Qc7 {[%emt 0:00:39]} 23. Qe2 {[%emt 0:04:36]} Bd6 {[%emt 0:00:25]} 24. d4 {[%emt 0:03:42]} cxd4 {[%emt 0:00:44]} 25. Bxd4 {[%emt 0:00:28]} Bc5 {[%emt 0:01:08]} 26. Re1 {[%emt 0:03:18]} Rad8 {[%emt 0:01:58]} 27. Bxc5 {[%emt 0:00:59]} Qxc5+ {[%emt 0:00:12]} 28. Qf2 {[%emt 0:00:24]} Qg5 {[%emt 0:04:05]} 29. Qe3 {[%emt 0:01:13]} Qxe3+ {[%emt 0:01:20]} 30. R1xe3 {[%emt 0:00:45]} Rd2 {[%emt 0:00:11]} 31. Re2 {[%emt 0:00:27]} Rfd8 {[%emt 0:00:14]} 32. Kf2 {[%emt 0:01:30]} Kf8 {[%emt 0:03:47]} 33. Re8+ {[%emt 0:01:04]} Rxe8 {[%emt 0:00:05]} 34. Rxd2 {[%emt 0:00:06]} Ke7 {[%emt 0:01:09]} 35. Re2+ {[%emt 0:00:22]} Kd7 {[%emt 0:00:06]} 36. Rxe8 {[%emt 0:00:40]} Kxe8 {[%emt 0:00:06]} 37. Ke3 {[%emt 0:00:31]} Ke7 {[%emt 0:00:05]} 38. c4 {[%emt 0:00:23]} Kd6 {[%emt 0:00:30]} 39. Kd4 {[%emt 0:01:33]} f6 {[%emt 0:00:30]} 40. c5+ {[%emt 0:00:00]} Ke6 {[%emt 0:00:00]} 41. b4 {[%emt 0:02:06]} g5 {[%emt 0:04:33]} 42. Ke4 {[%emt 0:01:11]} Ke7 {[%emt 0:01:52]} 43. Kd5 {[%emt 0:01:24]} Kd7 {[%emt 0:00:32]} 44. c6+ {[%emt 0:00:47]} Kc7 {[%emt 0:00:06]} 45. Kc5 {[%emt 0:00:16]} g6 {[%emt 0:00:20]} 46. Kd5 {[%emt 0:00:21]} f5 {[%emt 0:00:16]} 47. Kc5 {[%emt 0:00:28]} g4 {[%emt 0:00:06]} 48. hxg4 {[%emt 0:00:10]} fxg4 {[%emt 0:00:17]} 49. g3 {[%emt 0:00:25]} Kc8 {[%emt 0:00:07]} 50. Kb6 {[%emt 0:00:15]} a5 {[%emt 0:00:08]} 51. bxa5 {[%emt 0:00:07]} b4 {[%emt 0:00:12]} 52. a6 {[%emt 0:00:10]} Kd8 {[%emt 0:00:05]} 53. a7 {[%emt 0:00:08]} b3 {[%emt 0:00:11]} 54. a8=Q+ {[%emt 0:00:09]} Ke7 {[%emt 0:00:07]} 55. c7 {[%emt 0:00:09]} Kd6 {[%emt 0:00:07]} 56. c8=Q {[%emt 0:00:33]} Ke5 {[%emt 0:00:06]} 57. Qac6 {[%emt 0:00:44]} g5 {[%emt 0:00:08]} 58. Q8e6+ {[%emt 0:00:07]} Kd4 {[%emt 0:00:06]} 59. Qcc4# 1-0

[Event "IIFL Wealth  4th Mumbai Junior U-13"]
[Site "Mumbai"]
[Date "2019.01.02"]
[Round "4"]
[White "Ananmay Sharma"]
[Black "Vaval Aaditi"]
[Result "1-0"]
[ECO "D00"]
[WhiteElo "1749"]
[BlackElo "1367"]
[Annotator "NA"]
[PlyCount "111"]
[EventDate "2018.12.30"]
[EventType "swiss"]
[EventCountry "IND"]
[SourceTitle "playchess.com"]
[Source "ChessBase"]
[SourceQuality "1"]
[TimeControl "40/5400+30:1800+30"]

1. d4 {[%emt 0:00:00]} d5 {[%emt 0:00:00]} 2. Bf4 {[%emt 0:00:00]} Nf6 {[%emt 0:00:00]} 3. e3 {[%emt 0:00:00]} c5 {[%emt 0:00:51]} 4. c3 {[%emt 0:02:14]} e6 {[%emt 0:00:41]} 5. Nd2 {[%emt 0:00:28]} Nc6 {[%emt 0:00:31]} 6. Ngf3 {[%emt 0:01:26]} Be7 {[%emt 0:01:39]} 7. h3 {[%emt 0:01:23]} c4 {[%emt 0:06:31]} 8. Be2 {[%emt 0:14:11]} b5 {[%emt 0:04:44]} 9. O-O {[%emt 0:02:13]} O-O {[%emt 0:00:11]} 10. b3 {[%emt 0:02:33]} a6 {[%emt 0:02:17]} 11. Ne5 {[%emt 0:03:15]} Nxe5 {[%emt 0:01:17]} 12. dxe5 {[%emt 0:01:02]} Nd7 {[%emt 0:04:11]} 13. bxc4 {[%emt 0:02:28]} bxc4 {[%emt 0:04:39]} 14. e4 {[%emt 0:02:01]} Nc5 {[%emt 0:03:28]} 15. exd5 {[%emt 0:01:58]} exd5 {[%emt 0:00:23]} 16. Be3 {[%emt 0:02:33]} Bf5 {[%emt 0:09:33]} 17. f4 {[%emt 0:02:29]} Ne4 {[%emt 0:09:58]} 18. Nxe4 {[%emt 0:02:26]} Bxe4 {[%emt 0:02:04]} 19. Bd4 {[%emt 0:03:49]} Qa5 {[%emt 0:09:51]} 20. Qe1 {[%emt 0:04:16]} Qa4 {[%emt 0:16:07]} 21. Qg3 {[%emt 0:16:02]} f6 {[%emt 0:05:16]} 22. Bf3 {[%emt 0:05:37]} Bxf3 {[%emt 0:01:03]} 23. Qxf3 {[%emt 0:00:13]} Qc6 {[%emt 0:00:58]} 24. Qe3 {[%emt 0:09:17]} fxe5 {[%emt 0:01:47]} 25. fxe5 {[%emt 0:01:11]} Qe6 {[%emt 0:02:44]} 26. Rfd1 {[%emt 0:04:20]} Rab8 {[%emt 0:01:27]} 27. Rab1 {[%emt 0:00:57]} Qf5 {[%emt 0:03:30]} 28. Rxb8 {[%emt 0:01:05]} Rxb8 {[%emt 0:00:16]} 29. Qg3 {[%emt 0:02:31]} Rb1 {[%emt 0:02:40]} 30. Rxb1 Qxb1+ {[%emt 0:00:01]} 31. Kh2 {[%emt 0:00:44]} Qg6 {[%emt 0:00:59]} 32. Qf3 {[%emt 0:01:41]} Qf7 {[%emt 0:00:36]} 33. Qg4 {[%emt 0:00:18]} Qg6 {[%emt 0:00:44]} 34. Qd7 {[%emt 0:03:10]} Qf7 {[%emt 0:02:02]} 35. Qc8+ {[%emt 0:00:39]} Qf8 {[%emt 0:00:25]} 36. Qxa6 {[%emt 0:00:48]} Qf4+ {[%emt 0:00:12]} 37. Kh1 {[%emt 0:00:03]} Qc1+ {[%emt 0:01:10]} 38. Bg1 {[%emt 0:00:04]} Qxc3 {[%emt 0:01:25]} 39. Qa8+ {[%emt 0:00:09]} Kf7 {[%emt 0:01:05]} 40. Qxd5+ {[%emt 0:00:00]} Ke8 {[%emt 0:00:00]} 41. e6 {[%emt 0:01:14]} Qd3 {[%emt 0:01:01]} 42. Qc6+ {[%emt 0:01:29]} Kf8 {[%emt 0:01:01]} 43. Qc8+ {[%emt 0:00:08]} Qd8 {[%emt 0:00:44]} 44. Qxc4 {[%emt 0:00:19]} Bd6 {[%emt 0:01:26]} 45. Qd5 {[%emt 0:02:45]} Qc7 {[%emt 0:01:28]} 46. Qa8+ {[%emt 0:01:29]} Ke7 {[%emt 0:00:25]} 47. Qg8 {[%emt 0:00:06]} Kf6 {[%emt 0:00:32]} 48. Bd4+ {[%emt 0:01:00]} Be5 {[%emt 0:00:34]} 49. Qe8 {Bd6 Be3} Kg5 {Bd4 Kf6} 50. Qg8 Kg6 51. Qe8+ Kh6 52. Be3+ g5 53. Qf7 Qc3 54. e7 Qxe3 55. Qf6+ Kh5 56. Qd6 1-0